bitfinex-derivatives/quotes_BTCF0:USTF0_20250406
["timestamp","ask_amount","ask_price","bid_price","bid_amount"]
[1743964569206,0.54434001,79938.0,79937.0,0.50883671]
[1743964569510,0.54434001,79938.0,79937.0,0.92883671]
[1743964569701,0.71774001,79938.0,79937.0,0.50883671]
[1743964569904,0.71774001,79938.0,79937.0,0.44628359]
[1743964570107,0.71674001,79938.0,79937.0,0.38596334]
[1743964570409,0.71674001,79938.0,79937.0,0.51322461]
[1743964570599,0.71774001,79938.0,79937.0,0.45620461]
[1743964570910,0.71774001,79938.0,79937.0,0.51874922]
[1743964571202,0.71774001,79938.0,79937.0,0.51249375]
[1743964571401,0.86774001,79938.0,79937.0,0.33712168]
[1743964571604,0.86774001,79938.0,79901.0,0.1802]
[1743964571909,0.3608,79902.0,79901.0,0.53294841]
[1743964572101,0.5342,79902.0,79901.0,0.31]
[1743964572304,0.5342,79902.0,79901.0,0.31702183]
[1743964572511,0.5342,79902.0,79901.0,0.3416701]
[1743964572803,0.5342,79902.0,79901.0,0.76141051]
[1743964572996,0.5342,79902.0,79901.0,0.47926051]
[1743964573196,0.6842,79902.0,79901.0,0.3187897]
[1743964573407,0.5342,79902.0,79901.0,0.3187897]
[1743964573600,0.5342,79902.0,79901.0,0.54623658]
[1743964573802,0.5352,79902.0,79901.0,0.54623658]
[1743964574002,0.5352,79902.0,79901.0,0.38922284]
[1743964574205,0.6852,79902.0,79901.0,0.51437693]
[1743964574401,0.6852,79902.0,79901.0,0.45182381]
[1743964574598,0.5352,79902.0,79901.0,0.45182381]
[1743964574897,0.3628,79902.0,79901.0,0.38927069]
[1743964575098,0.36368,79902.0,79901.0,1.02765805]
[1743964575307,0.3628,79902.0,79901.0,1.24615632]
[1743964575515,0.3628,79902.0,79901.0,0.37169838]
[1743964575807,0.51392001,79902.0,79858.0,0.3608]
[1743964576010,0.00312001,79902.0,79901.0,0.30167134]
[1743964576222,0.00312001,79902.0,79895.0,0.18776885]
[1743964576223,0.3608,79901.0,79895.0,0.18776885]
[1743964576404,0.36208,79901.0,79895.0,0.33064]
[1743964576603,0.51208,79901.0,79895.0,0.26926817]
[1743964576900,0.00126879,79860.0,79845.0,0.3608]
[1743964577104,0.00126879,79860.0,79859.0,0.81284]
[1743964577414,0.00126879,79860.0,79859.0,0.93805991]
[1743964577712,0.00126879,79860.0,79859.0,1.125953]
[1743964577908,0.00126879,79860.0,79859.0,1.275953]
[1743964578215,0.00018773,79867.0,79859.0,1.474953]
[1743964578409,0.00018773,79867.0,79866.0,0.29819827]
[1743964578609,0.00018773,79867.0,79866.0,1.16883827]
[1743964578913,0.00018773,79867.0,79866.0,1.50593076]
[1743964579108,0.00018773,79867.0,79866.0,1.63115067]
[1743964579708,0.00018773,79867.0,79866.0,1.48115067]
[1743964579909,0.00118773,79867.0,79866.0,1.38115067]
[1743964580614,0.00218773,79867.0,79866.0,1.38115067]
[1743964580911,0.00218773,79867.0,79866.0,1.53115067]
[1743964581216,0.00218773,79867.0,79866.0,1.48115067]
[1743964581514,0.00218773,79867.0,79866.0,1.41954894]
[1743964583510,0.00218773,79867.0,79866.0,1.1839524]
[1743964583711,0.36298773,79867.0,79866.0,1.1839524]
[1743964583909,0.36298773,79867.0,79866.0,1.0839524]
[1743964584111,0.36298773,79867.0,79866.0,0.6439524]
[1743964584416,0.36430773,79867.0,79866.0,0.57935067]
[1743964584916,0.36430773,79867.0,79866.0,0.51771189]
[1743964585315,0.51430773,79867.0,79857.0,0.21317403]
[1743964585517,0.3608,79858.0,79857.0,0.40714786]
[1743964585715,0.3608,79858.0,79857.0,0.22480859]
[1743964586018,0.3608,79858.0,79857.0,0.5163358]
[1743964586215,0.36228,79858.0,79857.0,0.8763358]
[1743964586418,0.1748,79858.0,79857.0,0.87644853]
[1743964586616,0.17332,79858.0,79857.0,0.87644853]
[1743964586812,0.53412,79858.0,79857.0,0.87644853]
[1743964587312,0.53556,79858.0,79857.0,0.87644853]
[1743964587511,0.53556,79858.0,79857.0,0.8138468]
[1743964587714,0.53756,79858.0,79857.0,0.8138468]
[1743964588321,0.17676,79858.0,79857.0,0.8138468]
[1743964588521,0.17532,79858.0,79857.0,0.8138468]
[1743964589123,0.002,79858.0,79857.0,0.8138468]
[1743964589309,0.17532,79858.0,79857.0,0.8138468]
[1743964589714,0.17532,79858.0,79857.0,0.28662088]
[1743964590018,0.72172124,79858.0,79857.0,0.43520981]
[1743964590319,0.72172124,79858.0,79857.0,0.36639685]
[1743964590629,0.72086,79858.0,79857.0,0.31]
[1743964590922,0.72316145,79858.0,79857.0,0.37382331]
[1743964591121,0.72316147,79858.0,79857.0,0.37382331]
[1743964591326,0.91206,79858.0,79857.0,0.49931701]
[1743964591626,0.76206,79858.0,79857.0,0.37409109]
[1743964591813,0.76336131,79858.0,79857.0,0.63147813]
[1743964592014,0.76436131,79858.0,79857.0,0.56886517]
[1743964592317,0.76436131,79858.0,79857.0,0.44363925]
[1743964592624,0.76436131,79858.0,79857.0,0.44363638]
[1743964592814,0.76436133,79858.0,79857.0,0.38102342]
[1743964593015,0.76436133,79858.0,79857.0,0.50626409]
[1743964593319,0.76436133,79858.0,79857.0,0.38103817]
[1743964593518,0.91436133,79858.0,79857.0,0.25582348]
[1743964593719,1.03976133,79858.0,79832.0,0.1988]
[1743964594027,0.3608,79833.0,79832.0,0.20608606]
[1743964594231,0.53638133,79833.0,79832.0,0.18131606]
[1743964594422,0.53790203,79833.0,79832.0,0.36830508]
[1743964594616,0.89900203,79833.0,79832.0,0.43094773]
[1743964594814,0.89900203,79833.0,79832.0,0.36833477]
[1743964595011,0.72572203,79833.0,79832.0,0.62634773]
[1743964595217,0.8967,79833.0,79832.0,0.62634773]
[1743964595411,0.8967,79833.0,79832.0,0.56374773]
[1743964595624,0.8967,79833.0,79832.0,0.49944773]
[1743964595815,0.8967,79833.0,79832.0,0.43974773]
[1743964596013,0.8967,79833.0,79832.0,0.37744773]
[1743964596218,1.1047,79833.0,79832.0,0.55430187]
[1743964596522,1.10700211,79833.0,79832.0,0.38471679]
[1743964596734,1.05856645,79833.0,79797.0,0.176611]
[1743964596919,0.3608,79798.0,79797.0,0.727011]
[1743964597120,0.53408,79798.0,79797.0,0.727011]
[1743964597319,0.53638258,79798.0,79797.0,0.7240986]
[1743964597517,0.53552,79798.0,79797.0,0.21750588]
[1743964597828,0.89632,79798.0,79797.0,0.17990353]
[1743964598026,0.89862291,79798.0,79797.0,0.43083394]
[1743964598325,1.27062,79798.0,79789.0,0.53186359]
[1743964598528,0.3608,79790.0,79789.0,0.06]
[1743964598826,1.62666307,79790.0,79789.0,0.28]
[1743964599019,1.62666307,79790.0,79789.0,0.58084778]
[1743964599219,1.62666307,79790.0,79789.0,0.51824778]
[1743964599523,1.62666322,79790.0,79789.0,0.39299879]
[1743964599819,1.62666322,79790.0,79789.0,0.31351854]
[1743964600024,1.79764,79790.0,79789.0,0.55770427]
[1743964600228,1.43684,79790.0,79789.0,1.02770427]
[1743964600926,1.43784,79790.0,79789.0,1.02770427]
[1743964601124,1.43884,79790.0,79789.0,0.99347291]
[1743964602320,1.80194293,79790.0,79789.0,0.59347291]
[1743964602629,1.80194293,79790.0,79789.0,0.46087118]
[1743964602831,1.62866293,79790.0,79789.0,0.46087118]
[1743964603023,1.80194293,79790.0,79789.0,0.4876495]
[1743964603417,1.80194293,79790.0,79789.0,0.9276495]
[1743964603619,1.79964,79790.0,79789.0,0.9276495]
[1743964603921,1.79864,79790.0,79789.0,0.9276495]
[1743964604220,1.80194278,79790.0,79789.0,0.9276495]
[1743964604630,1.44014279,79790.0,79789.0,0.9276495]
[1743964604832,1.43884,79790.0,79789.0,0.9276495]
[1743964605021,1.26556,79790.0,79789.0,0.9276495]
[1743964605222,0.04411972,79798.0,79789.0,1.1776495]
[1743964605421,0.001,79798.0,79796.0,0.1]
[1743964605622,0.3608,79795.0,79790.0,0.31749827]
[1743964605823,0.39300269,79794.0,79790.0,0.94749827]
[1743964606122,0.3907,79794.0,79791.0,0.31318856]
[1743964606316,0.3907,79794.0,79791.0,0.81318856]
[1743964606717,0.208,79793.0,79791.0,0.81318856]
[1743964606922,0.3907,79794.0,79791.0,0.81318856]
[1743964607130,0.3887,79792.0,79791.0,0.81318856]
[1743964607324,0.3887,79792.0,79791.0,0.42]
[1743964607325,0.95980296,79792.0,79791.0,0.42]
[1743964607531,1.11080296,79792.0,79767.0,0.144179]
[1743964607826,0.3608,79769.0,79767.0,0.26]
[1743964608031,0.36184001,79769.0,79768.0,0.18741553]
[1743964608228,0.53504001,79769.0,79768.0,0.63274059]
[1743964608427,0.53504001,79769.0,79768.0,1.02274059]
[1743964608638,0.53734377,79769.0,79768.0,0.77272333]
[1743964608932,0.53734377,79769.0,79768.0,0.95961231]
[1743964609618,0.53504001,79769.0,79768.0,0.95961231]
[1743964609823,0.53734371,79769.0,79768.0,0.95961231]
[1743964610025,0.53504001,79769.0,79768.0,0.95961231]
[1743964610232,0.53604001,79769.0,79768.0,0.96061231]
[1743964610531,0.53834368,79769.0,79768.0,0.96061231]
[1743964610736,0.53604001,79769.0,79768.0,0.96061231]
[1743964611025,0.53704001,79769.0,79768.0,0.96261231]
[1743964611729,0.53704001,79769.0,79768.0,0.79901058]
[1743964611932,0.54658483,79769.0,79768.0,0.40901058]
[1743964612128,0.54888864,79769.0,79768.0,0.47177334]
[1743964612628,0.54888864,79769.0,79743.0,0.3608]
[1743964612629,0.3334,79760.0,79702.0,0.3608]
[1743964612830,0.3608,79740.0,79731.0,0.08308436]
[1743964613033,0.3608,79732.0,79731.0,0.4674567]
[1743964613236,0.36310445,79732.0,79731.0,0.40596079]
[1743964613425,0.36414446,79732.0,79731.0,0.21850409]
[1743964613727,0.53741686,79732.0,79731.0,0.46979708]
[1743964613928,0.53741686,79732.0,79731.0,0.47079708]
[1743964614134,0.53511241,79732.0,79731.0,0.31]
[1743964614331,0.66051241,79732.0,79731.0,0.03914716]
[1743964614636,0.3608,79717.0,79691.0,0.44]
[1743964614931,0.7216,79701.0,79700.0,0.78672608]
[1743964615139,0.8948,79701.0,79700.0,0.68672608]
[1743964615432,0.8948,79701.0,79700.0,1.00045938]
[1743964615636,0.8948,79701.0,79700.0,1.49588032]
[1743964616136,0.7216,79701.0,79700.0,1.64588032]
[1743964616320,0.001,79701.0,79700.0,1.74588032]
[1743964616526,0.17316,79707.0,79700.0,1.62045938]
[1743964616829,0.35852401,79710.0,79701.0,0.3608]
[1743964617035,0.35852401,79710.0,79701.0,1.2308]
[1743964617334,0.00230504,79709.0,79702.0,0.37801689]
[1743964617535,0.35852401,79710.0,79702.0,1.27347874]
[1743964617733,0.0001881,79716.0,79709.0,0.29819827]
[1743964617934,0.0001881,79716.0,79715.0,0.1]
[1743964618131,0.0001881,79716.0,79715.0,0.77]
[1743964618330,0.0001881,79716.0,79715.0,0.95830907]
[1743964618537,0.0001881,79716.0,79715.0,1.08375518]
[1743964619431,0.35852401,79730.0,79719.0,0.1]
[1743964619730,0.00230468,79725.0,79720.0,0.3823]
[1743964619932,0.00230468,79724.0,79720.0,1.28929044]
[1743964620238,0.00076,79724.0,79720.0,1.41541655]
[1743964620537,0.03685451,79741.0,79721.0,0.60504196]
[1743964620733,0.17316,79749.0,79736.0,0.3608]
[1743964621034,0.03807865,79745.0,79737.0,0.3776]
[1743964621234,0.3608,79738.0,79737.0,1.53090438]
[1743964621428,0.3608,79738.0,79737.0,1.43103357]
[1743964621729,0.00076,79738.0,79737.0,1.53103357]
[1743964621923,0.00010432,79742.0,79737.0,1.53103357]
[1743964622124,0.00230417,79741.0,79737.0,1.53103357]
[1743964622331,0.00010432,79742.0,79737.0,1.68103357]
[1743964622525,0.0014,79744.0,79741.0,0.4608]
[1743964622742,0.0014,79744.0,79742.0,0.2845]
[1743964622927,0.00216,79744.0,79742.0,1.22263232]
[1743964623127,0.00216,79744.0,79742.0,0.49813232]
[1743964623128,0.002304,79743.0,79742.0,0.49813232]
[1743964623426,0.37006915,79743.0,79737.0,0.00012919]
[1743964623632,0.3618,79738.0,79737.0,0.07]
[1743964623832,0.364864,79738.0,79714.0,0.12709556]
[1743964624035,0.3608,79717.0,79714.0,0.24072]
[1743964624241,0.17312,79716.0,79715.0,0.18901911]
[1743964624436,0.17542495,79716.0,79715.0,0.48622196]
[1743964624635,0.00298495,79716.0,79715.0,0.45622196]
[1743964624844,0.17606524,79716.0,79715.0,0.44986196]
[1743964625134,0.1753853,79716.0,79715.0,0.59922196]
[1743964625339,0.17308,79716.0,79715.0,0.59922196]
[1743964625534,0.17538515,79716.0,79715.0,0.59922196]
[1743964626138,0.17538516,79716.0,79715.0,0.59922196]
[1743964626831,0.17508,79716.0,79715.0,0.53662023]
[1743964627033,0.17738502,79716.0,79715.0,0.53662023]
[1743964627333,0.17508,79716.0,79715.0,0.5749496]
[1743964627533,0.17738535,79716.0,79715.0,0.5749496]
[1743964627746,0.17508,79716.0,79715.0,0.5749496]
[1743964628332,0.17504,79716.0,79715.0,0.9649496]
[1743964628534,0.002,79716.0,79715.0,0.9649496]
[1743964628736,0.002,79716.0,79715.0,1.0649496]
[1743964629241,0.002,79716.0,79715.0,1.2149496]
[1743964629434,0.0001881,79723.0,79715.0,1.5757496]
[1743964629633,0.3608,79725.0,79715.0,1.5757496]
[1743964629840,0.00230426,79724.0,79715.0,1.5763896]
[1743964630144,0.3608,79740.0,79723.0,0.3608]
[1743964630333,0.00064,79740.0,79739.0,0.3608]
[1743964630533,0.17314515,79743.0,79739.0,1.03164]
[1743964630733,0.17390515,79743.0,79739.0,1.21980749]
[1743964631032,0.3608,79741.0,79739.0,0.59444731]
[1743964631238,0.00230425,79740.0,79739.0,0.59444731]
[1743964631433,0.00410425,79740.0,79739.0,0.05783921]
[1743964631750,0.57270425,79740.0,79697.0,0.3608]
[1743964632043,0.3608,79712.0,79711.0,0.41008847]
[1743964632246,0.53682425,79712.0,79711.0,0.41072847]
[1743964632442,0.53682425,79712.0,79711.0,0.59506376]
[1743964633031,0.53682542,79712.0,79711.0,0.98246203]
[1743964633436,0.53682542,79712.0,79711.0,0.98746203]
[1743964633838,0.53682542,79712.0,79711.0,0.98246203]
[1743964634140,0.53682542,79712.0,79711.0,0.98546203]
[1743964634342,0.53782542,79712.0,79711.0,0.99046203]
[1743964634643,0.53782527,79712.0,79711.0,0.54046203]
[1743964634839,0.53782527,79712.0,79711.0,0.55046203]
[1743964635141,0.00302527,79712.0,79711.0,0.95546203]
[1743964635340,0.001,79712.0,79711.0,0.96046203]
[1743964635535,0.36410506,79712.0,79711.0,0.96046203]
[1743964635735,0.36486506,79712.0,79711.0,0.96046203]
[1743964636039,0.36486506,79712.0,79711.0,0.8978603]
[1743964636240,0.36486506,79712.0,79711.0,0.8968603]
[1743964636441,0.00406522,79712.0,79711.0,0.8968603]
[1743964636640,0.00230522,79712.0,79711.0,0.8978603]
[1743964636842,0.17296,79717.0,79711.0,0.8978603]
[1743964637042,0.002305,79716.0,79711.0,0.8978603]
[1743964637243,0.002305,79715.0,79712.0,0.3659]
[1743964637443,0.002305,79714.0,79712.0,1.06654]
[1743964637645,0.00230504,79713.0,79712.0,0.28064]
[1743964637847,0.00302504,79713.0,79712.0,0.70064]
[1743964638037,0.00072,79713.0,79712.0,1.07531457]
[1743964638350,0.00072,79713.0,79712.0,1.20076383]
[1743964638842,0.00302524,79713.0,79712.0,1.20076383]
[1743964639043,0.00302524,79713.0,79712.0,1.1381621]
[1743964639441,0.00302524,79713.0,79712.0,0.9525621]
[1743964639641,0.00302527,79713.0,79712.0,0.6025621]
[1743964640049,0.00302527,79713.0,79712.0,0.5325621]
[1743964640345,0.00072,79713.0,79712.0,1.4621621]
[1743964640545,0.00172,79713.0,79712.0,1.4661621]
[1743964640754,0.00172,79713.0,79712.0,1.4631621]
[1743964640943,0.001,79713.0,79712.0,1.4631621]
[1743964641249,0.17292,79717.0,79712.0,1.2668621]
[1743964641452,0.001,79713.0,79712.0,1.1708621]
[1743964641652,0.00330496,79713.0,79712.0,1.1708621]
[1743964641841,0.00410496,79713.0,79712.0,1.1708621]
[1743964642041,0.00410496,79713.0,79712.0,0.92496037]
[1743964642237,0.00410496,79713.0,79712.0,0.70396037]
[1743964642453,0.36490496,79713.0,79712.0,0.70796037]
[1743964643038,0.36490516,79713.0,79712.0,0.70796037]
[1743964643440,0.00310516,79713.0,79712.0,0.70396037]
[1743964643650,0.0018,79713.0,79712.0,0.80696037]
[1743964643947,0.001,79713.0,79712.0,0.80696037]
[1743964644150,0.001,79713.0,79712.0,1.16776037]
[1743964644453,0.001,79713.0,79712.0,0.80696037]
[1743964645039,0.00072,79713.0,79712.0,0.74035864]
[1743964645239,0.00172,79713.0,79712.0,0.74435864]
[1743964645453,0.20012,79713.0,79712.0,0.74435864]
[1743964646052,0.00172,79713.0,79712.0,0.74435864]
[1743964646259,0.0001881,79719.0,79712.0,0.74435864]
[1743964646443,0.0001881,79719.0,79712.0,0.93575864]
[1743964646644,0.0001881,79719.0,79712.0,0.93175864]
[1743964646844,0.001,79713.0,79712.0,0.93275864]
[1743964647044,0.001,79713.0,79712.0,0.93475864]
[1743964647651,0.199,79718.0,79712.0,0.93475864]
[1743964648152,0.199,79718.0,79712.0,0.87215691]
[1743964648352,0.0001881,79719.0,79712.0,0.86615691]
[1743964648554,0.001,79713.0,79712.0,0.87215691]
[1743964649358,0.001,79713.0,79712.0,0.45075691]
[1743964649547,0.00172,79713.0,79712.0,0.34875691]
[1743964649850,0.00172,79713.0,79712.0,0.35075691]
[1743964650055,0.00072,79713.0,79712.0,0.37175691]
[1743964650448,0.36152,79713.0,79708.0,0.31787562]
[1743964650747,0.3608,79710.0,79709.0,0.18913182]
[1743964650942,0.36172,79710.0,79709.0,0.48911182]
[1743964651155,0.73602,79710.0,79709.0,0.55196092]
[1743964651853,0.73602,79710.0,79709.0,0.99396092]
[1743964652058,0.54352,79710.0,79709.0,1.18566092]
[1743964652249,0.54352,79710.0,79709.0,1.36676092]
[1743964652655,0.54352,79710.0,79709.0,1.18566092]
[1743964653445,0.54352,79710.0,79709.0,0.99396092]
[1743964653650,0.54352,79710.0,79709.0,0.55396092]
[1743964653860,0.54452,79710.0,79709.0,0.55396092]
[1743964654256,0.54452,79710.0,79709.0,0.75135919]
[1743964654454,0.36272,79710.0,79709.0,0.75135919]
[1743964654651,0.36272,79710.0,79709.0,0.85135919]
[1743964656060,0.00192,79710.0,79709.0,0.85135919]
[1743964656262,0.17268,79714.0,79709.0,0.85135919]
[1743964656561,0.1736,79714.0,79709.0,0.85135919]
[1743964656753,0.1736,79714.0,79710.0,0.3677]
[1743964656953,0.3608,79711.0,79710.0,0.9051]
[1743964657351,0.3608,79711.0,79710.0,1.1564754]
[1743964658058,0.3608,79711.0,79710.0,1.3390754]
[1743964658259,0.3618,79711.0,79710.0,1.3390754]
[1743964658453,0.3618,79711.0,79710.0,1.3410754]
[1743964658859,0.3618,79711.0,79710.0,1.3390754]
[1743964659066,0.1898,79729.0,79710.0,1.4420754]
[1743964659266,0.3608,79731.0,79710.0,1.5920754]
[1743964659460,0.3608,79731.0,79718.0,0.3608]
[1743964659664,0.3608,79731.0,79719.0,0.1904]
[1743964659863,0.3608,79731.0,79719.0,1.06803029]
[1743964660058,0.36172,79731.0,79719.0,1.06867029]
[1743964660257,0.36172,79731.0,79720.0,0.06284596]
[1743964660460,0.1726,79736.0,79720.0,0.06284596]
[1743964660461,0.0001881,79744.0,79730.0,0.3608]
[1743964660759,0.1726,79754.0,79741.0,0.3608]
[1743964660959,0.17344,79754.0,79753.0,0.3608]
[1743964661259,0.10740695,79760.0,79753.0,1.03783748]
[1743964661464,0.17256,79770.0,79759.0,0.3608]
[1743964661770,0.17256,79770.0,79766.0,0.4608]
[1743964662062,0.03810212,79770.0,79769.0,0.3608]
[1743964662363,0.03676817,79781.0,79769.0,1.06188]
[1743964662664,0.1,79800.0,79785.0,0.4608]
[1743964662862,0.341075,79810.0,79799.0,0.7216]
[1743964663065,0.3608,79809.0,79800.0,0.1831]
[1743964663363,0.341075,79810.0,79809.0,0.39819827]
[1743964663559,0.341075,79810.0,79809.0,1.12995827]
[1743964663756,0.00018798,79812.0,79809.0,1.31841874]
[1743964663959,0.00018798,79812.0,79810.0,0.3731]
[1743964664257,0.03745101,79812.0,79810.0,1.23016621]
[1743964664451,0.03745101,79812.0,79811.0,0.18724799]
[1743964664655,0.03745101,79812.0,79811.0,0.96900799]
[1743964664859,0.03745101,79812.0,79811.0,1.33860799]
[1743964665056,0.03745101,79812.0,79811.0,1.463904]
[1743964665254,0.03845101,79812.0,79811.0,1.463904]
[1743964665558,0.03945101,79812.0,79811.0,1.468904]
[1743964665761,0.03945101,79812.0,79811.0,1.104304]
[1743964665762,0.03845101,79812.0,79811.0,1.104304]
[1743964666262,0.54825101,79812.0,79811.0,0.639304]
[1743964666462,0.54825101,79812.0,79773.0,0.3608]
[1743964666657,0.3608,79778.0,79773.0,0.98424]
[1743964666857,0.1989,79777.0,79773.0,0.88766871]
[1743964667159,0.3608,79774.0,79773.0,0.34766871]
[1743964667359,0.3608,79774.0,79757.0,0.373]
[1743964667558,0.3905,79773.0,79767.0,0.1]
[1743964667865,0.19908798,79773.0,79768.0,0.18763109]
[1743964668053,0.19908798,79773.0,79768.0,1.10871875]
[1743964668259,0.19908798,79773.0,79772.0,0.1]
[1743964668463,0.19908798,79773.0,79772.0,0.73]
[1743964668663,0.19908798,79773.0,79772.0,0.91807577]
[1743964668866,0.19908798,79773.0,79772.0,1.04343539]
[1743964669169,0.00018798,79773.0,79772.0,1.14343539]
[1743964669467,0.00118798,79773.0,79772.0,1.08083366]
[1743964670063,0.19572798,79773.0,79772.0,1.08167366]
[1743964670666,0.19572798,79773.0,79772.0,0.98167366]
[1743964671061,0.19572798,79773.0,79772.0,0.98267366]
[1743964671261,0.19472798,79773.0,79772.0,0.98267366]
[1743964671463,0.00182798,79773.0,79772.0,0.98267366]
[1743964671665,0.17228,79783.0,79772.0,1.08267366]
[1743964671866,0.17340001,79783.0,79772.0,1.08267366]
[1743964672067,0.1936,79782.0,79772.0,1.08267366]
[1743964672264,0.001,79773.0,79772.0,1.08267366]
[1743964672562,0.001,79773.0,79772.0,1.02007193]
[1743964673355,0.001,79773.0,79772.0,1.02107193]
[1743964674070,0.00018798,79780.0,79772.0,1.02207193]
[1743964674370,0.00122799,79780.0,79777.0,0.1]
[1743964674568,0.00122799,79780.0,79777.0,0.81104]
[1743964674771,0.00122799,79780.0,79778.0,0.18709496]
[1743964674962,0.00122799,79780.0,79778.0,1.00348594]
[1743964675360,0.1967,79779.0,79778.0,0.81639098]
[1743964675560,0.1967,79779.0,79778.0,0.75378925]
[1743964675761,0.1967,79779.0,79778.0,0.94157994]
[1743964677078,0.7075,79779.0,79758.0,0.0003429]
[1743964677255,0.3608,79769.0,79768.0,0.63060588]
[1743964677770,0.5108,79769.0,79768.0,0.81940321]
[1743964677954,0.5108,79769.0,79768.0,0.94475812]
[1743964678159,0.3608,79769.0,79768.0,0.94475812]
[1743964678361,0.3608,79769.0,79768.0,1.25259812]
[1743964678671,0.001,79769.0,79768.0,1.16312639]
[1743964678861,0.002,79769.0,79768.0,1.16512639]
[1743964679364,0.1971,79769.0,79768.0,1.16512639]
[1743964680055,0.1979,79769.0,79768.0,1.16592639]
[1743964680764,0.1979,79769.0,79768.0,0.85601639]
[1743964680960,0.3479,79769.0,79758.0,0.0003429]
[1743964681161,0.3608,79762.0,79761.0,0.62540705]
[1743964681363,0.53364,79762.0,79761.0,0.18068]
[1743964681665,0.53364,79762.0,79761.0,0.523806]
[1743964681969,0.53288,79762.0,79761.0,0.963806]
[1743964682173,0.3608,79762.0,79761.0,0.963806]
[1743964682466,0.53288,79762.0,79761.0,0.46783192]
[1743964682669,0.53388,79762.0,79761.0,0.78086544]
[1743964682872,0.53388,79762.0,79761.0,0.77386544]
[1743964683068,0.68388,79762.0,79761.0,0.32]
[1743964683271,0.68388,79762.0,79761.0,0.31310708]
[1743964683474,0.68388,79762.0,79761.0,0.12739956]
[1743964683768,0.68388,79762.0,79761.0,0.16]
[1743964683967,0.89198,79762.0,79724.0,0.43993928]
[1743964684165,0.71932401,79734.0,79724.0,0.79993928]
[1743964684364,0.3608,79725.0,79724.0,1.13993928]
[1743964684674,0.36154,79733.0,79725.0,0.18725545]
[1743964684865,0.3608,79726.0,79725.0,0.42725545]
[1743964685060,0.3608,79726.0,79725.0,0.24]
[1743964685271,0.3608,79726.0,79725.0,0.42730626]
[1743964685464,0.3608,79726.0,79725.0,0.55273113]
[1743964685768,0.36090018,79726.0,79725.0,0.39081476]
[1743964685970,0.36090018,79726.0,79725.0,0.52346168]
[1743964686168,0.56851296,79726.0,79725.0,0.29466168]
[1743964686358,0.56851296,79726.0,79713.0,0.51428014]
[1743964686565,0.3608,79714.0,79713.0,1.03730632]
[1743964686866,0.3618,79714.0,79713.0,0.18837144]
[1743964687067,0.3618,79714.0,79713.0,0.62496182]
[1743964687267,0.3618,79714.0,79713.0,0.84659038]
[1743964687565,0.3618,79714.0,79713.0,0.97211472]
[1743964687763,0.3618,79714.0,79713.0,0.97283472]
[1743964687966,0.001,79714.0,79713.0,0.97294499]
[1743964688165,0.17404,79714.0,79713.0,0.97294499]
[1743964688366,0.002,79714.0,79713.0,1.07294499]
[1743964688573,0.001,79714.0,79713.0,1.07294499]
[1743964688875,0.002,79714.0,79713.0,1.07294499]
[1743964689278,0.002,79714.0,79713.0,0.52294499]
[1743964689569,0.00348,79714.0,79713.0,0.52294499]
[1743964689966,0.00348,79714.0,79713.0,0.93294499]
[1743964690468,0.00378,79714.0,79713.0,0.93294499]
[1743964690678,0.00378,79714.0,79713.0,0.87034326]
[1743964690860,0.00348,79714.0,79713.0,0.87034326]
[1743964691771,0.17544,79714.0,79713.0,0.87034326]
[1743964692178,0.17444,79714.0,79713.0,0.87034326]
[1743964692874,0.04718705,79726.0,79713.0,1.48114326]
[1743964693181,0.17196,79742.0,79725.0,0.3608]
[1743964693382,0.17196,79742.0,79736.0,0.3608]
[1743964693576,0.04679478,79737.0,79736.0,0.28]
[1743964693878,0.17318811,79737.0,79736.0,0.5306848]
[1743964694081,0.21960246,79737.0,79722.0,0.1]
[1743964694279,0.3608,79734.0,79722.0,0.45]
[1743964694483,0.3608,79734.0,79723.0,0.18776216]
[1743964694675,0.3608,79734.0,79723.0,1.08318389]
[1743964695281,0.36188,79734.0,79723.0,1.08386389]
[1743964695481,0.36288,79734.0,79723.0,1.08386389]
[1743964696184,0.00208,79734.0,79723.0,1.08386389]
[1743964696374,0.00208,79734.0,79724.0,0.1985]
[1743964696568,0.00208,79734.0,79724.0,0.94918]
[1743964696882,0.00208,79734.0,79724.0,0.88657827]
[1743964697077,0.1997,79733.0,79724.0,0.88657827]
[1743964697378,0.00104001,79733.0,79724.0,0.88657827]
[1743964697783,0.00104001,79733.0,79724.0,0.88957827]
[1743964697984,0.1936,79732.0,79724.0,0.89257827]
[1743964698285,0.1936,79732.0,79724.0,0.88957827]
[1743964698286,0.19464001,79732.0,79724.0,0.88957827]
[1743964698476,0.19464001,79732.0,79724.0,0.89157827]
[1743964698676,0.19464001,79732.0,79724.0,0.88857827]
[1743964698979,0.19464001,79732.0,79724.0,0.89157827]
[1743964699771,0.00104001,79732.0,79724.0,0.82897654]
[1743964699973,0.00104001,79732.0,79724.0,0.97697654]
[1743964700282,0.3608,79757.0,79728.0,0.3608]
[1743964700589,0.04695648,79757.0,79740.0,0.3608]
[1743964700780,0.3608,79750.0,79740.0,0.66]
[1743964701091,0.3608,79742.0,79741.0,0.3130109]
[1743964701288,0.53279693,79742.0,79741.0,0.57921351]
[1743964701790,0.53279693,79742.0,79734.0,0.0001881]
[1743964702091,0.3608,79735.0,79734.0,1e-08]
[1743964702288,0.5326,79735.0,79734.0,1e-08]
[1743964702486,0.5326,79735.0,79734.0,0.18750813]
[1743964702682,0.5326,79735.0,79734.0,0.31291334]
[1743964704593,0.7407,79735.0,79734.0,0.33000001]
[1743964704891,0.5326,79735.0,79734.0,0.65549382]
[1743964705092,0.53332,79735.0,79734.0,0.83613382]
[1743964705295,0.36152,79735.0,79734.0,0.83613382]
[1743964705587,0.36152,79735.0,79734.0,0.98613382]
[1743964705782,0.17176,79741.0,79734.0,0.77353209]
[1743964706090,0.17252,79741.0,79735.0,0.3742]
[1743964706287,0.1812,79740.0,79735.0,1.08496]
[1743964706489,0.18204,79740.0,79736.0,0.1882006]
[1743964706689,0.18204,79740.0,79736.0,1.0143721]
[1743964706890,0.18204,79740.0,79736.0,0.6143721]
[1743964706891,0.1812,79739.0,79736.0,0.6143721]
[1743964707086,0.18196,79739.0,79736.0,0.6043721]
[1743964707390,0.1812,79738.0,79736.0,0.6043721]
[1743964707590,0.18208,79738.0,79736.0,0.6043721]
[1743964707790,0.1812,79737.0,79736.0,0.6093721]
[1743964708087,0.0008,79737.0,79736.0,0.6153721]
[1743964708291,0.0008,79737.0,79736.0,0.6123721]